[Event "Late-Titled-Tuesday-Blitz-September-19-2023"]
[Site "Chess.com"]
[Date "2023.09.19"]
[Round "4"]
[White "FrenchMonster2002"]
[Black "KVAIDAN"]
[Result "1/2-1/2"]
[WhiteElo "2462"]
[BlackElo "2259"]
[TimeControl "180+1"]
[EndTime "14:37:46 PDT"]
[Termination "Game drawn - insufficient material"]

1. e4 {[%clk 0:02:55.7]} 1... e5 {[%clk 0:02:57.9]} 2. Nf3 {[%clk 0:02:54]} 2...
d5 {[%clk 0:02:57.6]} 3. exd5 {[%clk 0:02:53.2]} 3... e4 {[%clk 0:02:56.5]} 4.
Qe2 {[%clk 0:02:53.4]} 4... Nf6 {[%clk 0:02:56.9]} 5. d3 {[%clk 0:02:53.1]} 5...
Bb4+ {[%clk 0:02:55.7]} 6. c3 {[%clk 0:02:43.1]} 6... O-O {[%clk 0:02:55.5]} 7.
dxe4 {[%clk 0:02:37.9]} 7... Bc5 {[%clk 0:02:56]} 8. Bg5 {[%clk 0:02:36.6]} 8...
c6 {[%clk 0:02:54.9]} 9. Qc2 {[%clk 0:02:32.2]} 9... cxd5 {[%clk 0:02:53]} 10.
Nbd2 {[%clk 0:02:32.7]} 10... dxe4 {[%clk 0:02:51.2]} 11. Nxe4 {[%clk
0:02:27.1]} 11... Be7 {[%clk 0:02:51.6]} 12. Rd1 {[%clk 0:02:22.4]} 12... Qb6
{[%clk 0:02:51.4]} 13. Nxf6+ {[%clk 0:02:21.2]} 13... Bxf6 {[%clk 0:02:50.4]}
14. Bxf6 {[%clk 0:02:21.6]} 14... Qxf6 {[%clk 0:02:49.8]} 15. Be2 {[%clk
0:02:22.1]} 15... Nc6 {[%clk 0:02:49.1]} 16. O-O {[%clk 0:02:22.1]} 16... Bf5
{[%clk 0:02:49.5]} 17. Qb3 {[%clk 0:02:20.3]} 17... Be4 {[%clk 0:02:49.6]} 18.
Nd4 {[%clk 0:02:12]} 18... Nxd4 {[%clk 0:02:45.5]} 19. Rxd4 {[%clk 0:02:12.9]}
19... Qg6 {[%clk 0:02:45.7]} 20. f3 {[%clk 0:02:05]} 20... Bc6 {[%clk
0:02:45.3]} 21. Bd3 {[%clk 0:02:01.5]} 21... Qh6 {[%clk 0:02:43.4]} 22. Be4
{[%clk 0:01:58.1]} 22... Rad8 {[%clk 0:02:37.3]} 23. Rxd8 {[%clk 0:01:52.4]}
23... Rxd8 {[%clk 0:02:33.4]} 24. Bxc6 {[%clk 0:01:52.6]} 24... Qe3+ {[%clk
0:02:32.6]} 25. Kh1 {[%clk 0:01:52]} 25... bxc6 {[%clk 0:02:33.3]} 26. h3 {[%clk
0:01:45.6]} 26... h6 {[%clk 0:02:30.7]} 27. Rd1 {[%clk 0:01:34]} 27... Re8
{[%clk 0:02:30]} 28. Qc2 {[%clk 0:01:30.8]} 28... Qf4 {[%clk 0:02:26.4]} 29. Qf2
{[%clk 0:01:27.1]} 29... Re3 {[%clk 0:02:22]} 30. Qc2 {[%clk 0:01:19.5]} 30...
g6 {[%clk 0:02:21.3]} 31. Rd8+ {[%clk 0:01:14.9]} 31... Kg7 {[%clk 0:02:21]} 32.
Qd2 {[%clk 0:01:15.4]} 32... Qe5 {[%clk 0:02:13.2]} 33. f4 {[%clk 0:01:00.8]}
33... Qxf4 {[%clk 0:02:06.7]} 34. Qd4+ {[%clk 0:01:00.7]} 34... Qxd4 {[%clk
0:02:05.5]} 35. Rxd4 {[%clk 0:01:01.6]} 35... Re2 {[%clk 0:02:04.6]} 36. Rb4
{[%clk 0:00:58.5]} 36... c5 {[%clk 0:02:03.5]} 37. Rb5 {[%clk 0:00:57.1]} 37...
c4 {[%clk 0:02:03.6]} 38. a4 {[%clk 0:00:56.9]} 38... a5 {[%clk 0:02:03.1]} 39.
Kg1 {[%clk 0:00:54.6]} 39... f5 {[%clk 0:01:59.7]} 40. Kf1 {[%clk 0:00:54.5]}
40... Rc2 {[%clk 0:01:59.6]} 41. Rxa5 {[%clk 0:00:49.4]} 41... Rxb2 {[%clk
0:01:59.7]} 42. Rc5 {[%clk 0:00:50.1]} 42... Kf6 {[%clk 0:01:58.1]} 43. Rxc4
{[%clk 0:00:50.4]} 43... Ra2 {[%clk 0:01:58.7]} 44. h4 {[%clk 0:00:48]} 44...
Ke5 {[%clk 0:01:56.8]} 45. Kg1 {[%clk 0:00:43.8]} 45... g5 {[%clk 0:01:56.8]}
46. hxg5 {[%clk 0:00:42.4]} 46... hxg5 {[%clk 0:01:57.3]} 47. Kh2 {[%clk
0:00:42.7]} 47... f4 {[%clk 0:01:57.2]} 48. Kh3 {[%clk 0:00:42.2]} 48... Kf5
{[%clk 0:01:56.6]} 49. Rc5+ {[%clk 0:00:41.4]} 49... Kg6 {[%clk 0:01:56.6]} 50.
a5 {[%clk 0:00:41.5]} 50... Kh5 {[%clk 0:01:56.5]} 51. g4+ {[%clk 0:00:37.5]}
51... Kg6 {[%clk 0:01:52]} 52. Rc6+ {[%clk 0:00:35.9]} 52... Kf7 {[%clk
0:01:51.6]} 53. a6 {[%clk 0:00:36.6]} 53... Ke7 {[%clk 0:01:46.4]} 54. Rg6
{[%clk 0:00:27.3]} 54... Ra3 {[%clk 0:01:44.4]} 55. Rxg5 {[%clk 0:00:23.8]}
55... Rxc3+ {[%clk 0:01:44.2]} 56. Kg2 {[%clk 0:00:24.2]} 56... Ra3 {[%clk
0:01:42.5]} 57. Rg7+ {[%clk 0:00:21.2]} 57... Kf6 {[%clk 0:01:42.5]} 58. Rh7
{[%clk 0:00:20.7]} 58... Kg5 {[%clk 0:01:42.4]} 59. a7 {[%clk 0:00:19.3]} 59...
Kxg4 {[%clk 0:01:37.2]} 60. Rg7+ {[%clk 0:00:19.8]} 60... Kf5 {[%clk 0:01:37.2]}
61. Kf2 {[%clk 0:00:20.4]} 61... Kf6 {[%clk 0:01:35.8]} 62. Rb7 {[%clk 0:00:19]}
62... Ke5 {[%clk 0:01:35.9]} 63. Ke2 {[%clk 0:00:18.9]} 63... Ke4 {[%clk
0:01:35.6]} 64. Re7+ {[%clk 0:00:19.4]} 64... Kf5 {[%clk 0:01:35.6]} 65. Kd2
{[%clk 0:00:19.9]} 65... Kg4 {[%clk 0:01:35.7]} 66. Kc2 {[%clk 0:00:18.7]} 66...
f3 {[%clk 0:01:35.8]} 67. Kd2 {[%clk 0:00:18.9]} 67... Kg3 {[%clk 0:01:34.8]}
68. Ke1 {[%clk 0:00:17.5]} 68... Ra1+ {[%clk 0:01:29.9]} 69. Kd2 {[%clk
0:00:17.8]} 69... f2 {[%clk 0:01:29.4]} 70. Rf7 {[%clk 0:00:17.2]} 70... Kg2
{[%clk 0:01:29.3]} 71. Rg7+ {[%clk 0:00:17.3]} 71... Kf3 {[%clk 0:01:29.5]} 72.
Rf7+ {[%clk 0:00:17.6]} 72... Ke4 {[%clk 0:01:30.1]} 73. Rxf2 {[%clk 0:00:16.9]}
73... Rxa7 {[%clk 0:01:29.4]} 74. Re2+ {[%clk 0:00:15.9]} 74... Kd4 {[%clk
0:01:29.2]} 75. Ke1 {[%clk 0:00:15.7]} 75... Rh7 {[%clk 0:01:26.9]} 76. Kf2
{[%clk 0:00:16]} 76... Rh2+ {[%clk 0:01:26.1]} 77. Kf3 {[%clk 0:00:16.6]} 77...
Rxe2 {[%clk 0:01:25.1]} 78. Kxe2 {[%clk 0:00:16.9]} 1/2-1/2

[Event "Late-Titled-Tuesday-Blitz-September-19-2023"]
[Site "Chess.com"]
[Date "2023.09.19"]
[Round "4"]
[White "Parhamov"]
[Black "MathiasWomacka"]
[Result "1-0"]
[WhiteElo "3032"]
[BlackElo "2559"]
[TimeControl "180+1"]
[EndTime "14:37:54 PDT"]
[Termination "Parhamov won by resignation"]

1. d4 {[%clk 0:02:59.9]} 1... Nf6 {[%clk 0:02:59.9]} 2. c4 {[%clk 0:02:58.2]}
2... e6 {[%clk 0:03:00.3]} 3. Nf3 {[%clk 0:02:57.9]} 3... Bb4+ {[%clk 0:03:00]}
4. Bd2 {[%clk 0:02:57.6]} 4... Qe7 {[%clk 0:02:59.5]} 5. g3 {[%clk 0:02:57.8]}
5... Bxd2+ {[%clk 0:02:58.4]} 6. Qxd2 {[%clk 0:02:57.5]} 6... Nc6 {[%clk
0:02:57.6]} 7. Nc3 {[%clk 0:02:56.7]} 7... d5 {[%clk 0:02:56.6]} 8. cxd5 {[%clk
0:02:53]} 8... exd5 {[%clk 0:02:57.5]} 9. Bg2 {[%clk 0:02:53.5]} 9... Bg4 {[%clk
0:02:54.3]} 10. O-O {[%clk 0:02:52.9]} 10... O-O-O {[%clk 0:02:52.9]} 11. e3
{[%clk 0:02:30.8]} 11... Ne4 {[%clk 0:02:38.6]} 12. Qd3 {[%clk 0:02:30.9]} 12...
h5 {[%clk 0:02:28]} 13. Rac1 {[%clk 0:02:22.8]} 13... h4 {[%clk 0:02:25.7]} 14.
Nxh4 {[%clk 0:02:22.1]} 14... Rxh4 {[%clk 0:02:24.5]} 15. Nxd5 {[%clk
0:01:42.1]} 15... Rxd5 {[%clk 0:02:16]} 16. Qxe4 {[%clk 0:01:41.5]} 16... Qxe4
{[%clk 0:01:38.9]} 17. Bxe4 {[%clk 0:01:40.6]} 17... Rhh5 {[%clk 0:01:39.4]} 18.
Bxd5 {[%clk 0:01:39.1]} 18... Rxd5 {[%clk 0:01:40.3]} 19. f3 {[%clk 0:01:39.3]}
19... Be6 {[%clk 0:01:34.5]} 20. a3 {[%clk 0:01:38]} 20... Rb5 {[%clk
0:01:26.1]} 21. b4 {[%clk 0:01:37.7]} 21... a5 {[%clk 0:01:26.2]} 22. Rc5 {[%clk
0:01:37.2]} 22... Na7 {[%clk 0:01:15.2]} 23. Rfc1 {[%clk 0:01:22.8]} 23... c6
{[%clk 0:01:14.7]} 24. bxa5 {[%clk 0:01:12.4]} 24... Rb3 {[%clk 0:01:04.8]} 25.
R5c3 {[%clk 0:01:08.6]} 25... Rb5 {[%clk 0:01:01.2]} 26. a6 {[%clk 0:01:03.4]}
26... bxa6 {[%clk 0:01:00.1]} 27. e4 {[%clk 0:01:03.2]} 27... Kb7 {[%clk
0:00:56.8]} 28. h4 {[%clk 0:00:58]} 28... Rb2 {[%clk 0:00:56]} 29. Rd3 {[%clk
0:00:46.4]} 29... Nb5 {[%clk 0:00:52.6]} 30. g4 {[%clk 0:00:46.2]} 30... g6
{[%clk 0:00:43.4]} 31. d5 {[%clk 0:00:28.4]} 31... cxd5 {[%clk 0:00:42.8]} 32.
exd5 {[%clk 0:00:29]} 32... Bd7 {[%clk 0:00:42]} 33. d6 {[%clk 0:00:29.8]} 33...
Kb6 {[%clk 0:00:33.6]} 34. h5 {[%clk 0:00:24.3]} 34... gxh5 {[%clk 0:00:33.1]}
35. gxh5 {[%clk 0:00:24.8]} 35... Re2 {[%clk 0:00:31.3]} 36. a4 {[%clk
0:00:22.4]} 36... Na7 {[%clk 0:00:28.2]} 37. Rc7 {[%clk 0:00:17.2]} 37... Bxa4
{[%clk 0:00:27.8]} 38. d7 {[%clk 0:00:15.9]} 38... Bxd7 {[%clk 0:00:25.6]} 39.
Rcxd7 {[%clk 0:00:16.8]} 39... Re5 {[%clk 0:00:20.6]} 40. h6 {[%clk 0:00:15.7]}
40... Rg5+ {[%clk 0:00:18.5]} 41. Kf2 {[%clk 0:00:15.3]} 41... Rh5 {[%clk
0:00:18.5]} 42. R3d6+ {[%clk 0:00:13.6]} 42... Nc6 {[%clk 0:00:18.4]} 43. Rxf7
{[%clk 0:00:14]} 43... Kc5 {[%clk 0:00:18.4]} 44. Rdf6 {[%clk 0:00:10.1]} 44...
Ne5 {[%clk 0:00:17.9]} 45. Rf5 {[%clk 0:00:10.7]} 1-0

[Event "Late-Titled-Tuesday-Blitz-September-19-2023"]
[Site "Chess.com"]
[Date "2023.09.19"]
[Round "4"]
[White "Sjakkerntobi"]
[Black "ameetghasi100"]
[Result "0-1"]
[WhiteElo "2517"]
[BlackElo "2697"]
[TimeControl "180+1"]
[EndTime "14:37:54 PDT"]
[Termination "ameetghasi100 won by checkmate"]

1. e4 {[%clk 0:03:00.9]} 1... g6 {[%clk 0:02:59.3]} 2. d4 {[%clk 0:03:00.8]}
2... Bg7 {[%clk 0:03:00.2]} 3. Nc3 {[%clk 0:03:01.6]} 3... d6 {[%clk 0:03:00.9]}
4. f4 {[%clk 0:03:02.1]} 4... e6 {[%clk 0:03:00.5]} 5. Nf3 {[%clk 0:03:02.2]}
5... Ne7 {[%clk 0:03:01.1]} 6. h4 {[%clk 0:03:02.5]} 6... h5 {[%clk 0:03:00.9]}
7. Bd3 {[%clk 0:03:01.9]} 7... d5 {[%clk 0:03:00.6]} 8. e5 {[%clk 0:03:00.4]}
8... b6 {[%clk 0:02:59.6]} 9. Qe2 {[%clk 0:03:00]} 9... c5 {[%clk 0:02:55.6]}
10. Bb5+ {[%clk 0:02:23.6]} 10... Nbc6 {[%clk 0:02:54.4]} 11. Be3 {[%clk
0:02:23.4]} 11... c4 {[%clk 0:02:52.3]} 12. Bxc6+ {[%clk 0:02:16.5]} 12... Nxc6
{[%clk 0:02:53.2]} 13. Nb5 {[%clk 0:02:17]} 13... Bf8 {[%clk 0:02:51.5]} 14. Ng5
{[%clk 0:02:06.4]} 14... a6 {[%clk 0:02:50.9]} 15. Nc3 {[%clk 0:02:06.7]} 15...
Ne7 {[%clk 0:02:43.1]} 16. g4 {[%clk 0:01:59.7]} 16... hxg4 {[%clk 0:02:42.7]}
17. Qxg4 {[%clk 0:02:00.6]} 17... Nf5 {[%clk 0:02:43.4]} 18. Bf2 {[%clk
0:02:00.4]} 18... Rh5 {[%clk 0:02:43.7]} 19. Ne2 {[%clk 0:01:58.8]} 19... b5
{[%clk 0:02:05.7]} 20. Rg1 {[%clk 0:01:57.5]} 20... Ra7 {[%clk 0:01:53.9]} 21.
Ng3 {[%clk 0:01:54.7]} 21... Nxg3 {[%clk 0:01:53.4]} 22. Bxg3 {[%clk 0:01:55.6]}
22... Qa5+ {[%clk 0:01:47.7]} 23. Ke2 {[%clk 0:01:47.1]} 23... b4 {[%clk
0:01:42.5]} 24. Be1 {[%clk 0:01:37.3]} 24... Qb5 {[%clk 0:01:37.4]} 25. c3
{[%clk 0:01:37.2]} 25... a5 {[%clk 0:01:37.1]} 26. Bd2 {[%clk 0:01:33.5]} 26...
a4 {[%clk 0:01:33.8]} 27. a3 {[%clk 0:01:33.7]} 27... bxa3 {[%clk 0:01:29.5]}
28. bxa3 {[%clk 0:01:34.6]} 28... Rb7 {[%clk 0:01:30.1]} 29. Qg2 {[%clk
0:01:06.9]} 29... Qd7 {[%clk 0:01:24.6]} 30. Rgb1 {[%clk 0:01:01.8]} 30... Rb3
{[%clk 0:01:22.7]} 31. Qf3 {[%clk 0:00:42]} 31... Ba6 {[%clk 0:01:13.5]} 32. Nh3
{[%clk 0:00:28.6]} 32... Be7 {[%clk 0:01:11.1]} 33. Nf2 {[%clk 0:00:27.1]} 33...
Qb7 {[%clk 0:01:10.7]} 34. Rg1 {[%clk 0:00:22.2]} 34... Rxa3 {[%clk 0:01:02]}
35. Rxa3 {[%clk 0:00:20.3]} 35... Bxa3 {[%clk 0:01:02.9]} 36. Ng4 {[%clk
0:00:21]} 36... Be7 {[%clk 0:01:01.6]} 37. Ne3 {[%clk 0:00:21.6]} 37... Rxh4
{[%clk 0:00:45]} 38. f5 {[%clk 0:00:20.9]} 38... exf5 {[%clk 0:00:32.7]} 39.
Nxd5 {[%clk 0:00:19.9]} 39... Re4+ {[%clk 0:00:32.2]} 40. Ne3 {[%clk 0:00:14.7]}
40... a3 {[%clk 0:00:31.9]} 41. Ra1 {[%clk 0:00:12.7]} 41... Qb2 {[%clk
0:00:29.9]} 42. Qf1 {[%clk 0:00:12.6]} 42... f4 {[%clk 0:00:25.1]} 43. Kf3
{[%clk 0:00:13.2]} 43... Qxd2 {[%clk 0:00:18.3]} 44. Kxe4 {[%clk 0:00:13.5]}
44... Qxe3+ {[%clk 0:00:18.3]} 45. Kd5 {[%clk 0:00:14.4]} 45... Qxc3 {[%clk
0:00:17.2]} 46. Qb1 {[%clk 0:00:12.4]} 46... Qb3 {[%clk 0:00:16.8]} 47. Ke4
{[%clk 0:00:04.9]} 47... g5 {[%clk 0:00:15.7]} 48. Qh1 {[%clk 0:00:04.6]} 48...
Bb7+ {[%clk 0:00:15.3]} 49. d5 {[%clk 0:00:05.3]} 49... Qd3# {[%clk 0:00:15.7]}
0-1

[Event "Late-Titled-Tuesday-Blitz-September-19-2023"]
[Site "Chess.com"]
[Date "2023.09.19"]
[Round "4"]
[White "Siemba"]
[Black "marik_spb"]
[Result "1-0"]
[WhiteElo "2602"]
[BlackElo "2403"]
[TimeControl "180+1"]
[EndTime "14:37:54 PDT"]
[Termination "Siemba won on time"]

1. e4 {[%clk 0:03:00.9]} 1... c6 {[%clk 0:01:45.6]} 2. d4 {[%clk 0:02:56.6]}
2... d5 {[%clk 0:01:46.5]} 3. e5 {[%clk 0:02:56.3]} 3... Bf5 {[%clk 0:01:46.2]}
4. h4 {[%clk 0:02:51.8]} 4... h5 {[%clk 0:01:45.8]} 5. Bg5 {[%clk 0:02:49.2]}
5... Qb6 {[%clk 0:01:45.6]} 6. Bd3 {[%clk 0:02:41.7]} 6... Bxd3 {[%clk 0:01:44]}
7. Qxd3 {[%clk 0:02:42.1]} 7... e6 {[%clk 0:01:43.7]} 8. Nd2 {[%clk 0:02:41.1]}
8... c5 {[%clk 0:01:41]} 9. Ngf3 {[%clk 0:02:36.7]} 9... Nc6 {[%clk 0:01:40.2]}
10. O-O {[%clk 0:02:26]} 10... cxd4 {[%clk 0:01:38.2]} 11. c4 {[%clk 0:02:17.1]}
11... dxc3 {[%clk 0:01:37.1]} 12. bxc3 {[%clk 0:02:16.4]} 12... Nge7 {[%clk
0:01:28]} 13. Rab1 {[%clk 0:02:12.5]} 13... Qc7 {[%clk 0:01:27.4]} 14. c4 {[%clk
0:02:09.3]} 14... Nxe5 {[%clk 0:01:18.6]} 15. Nxe5 {[%clk 0:02:07.3]} 15... Qxe5
{[%clk 0:01:19.5]} 16. Rxb7 {[%clk 0:02:05.3]} 16... f6 {[%clk 0:01:18.6]} 17.
Nf3 {[%clk 0:02:01.1]} 17... Qe4 {[%clk 0:01:13.2]} 18. Qb3 {[%clk 0:01:59.6]}
18... Qxc4 {[%clk 0:01:01.3]} 19. Qb1 {[%clk 0:01:52.9]} 19... Kf7 {[%clk
0:00:35.7]} 20. Rc1 {[%clk 0:01:47.5]} 20... Qe4 {[%clk 0:00:35.8]} 21. Qb5
{[%clk 0:01:44]} 21... Kg6 {[%clk 0:00:31.4]} 22. Be3 {[%clk 0:01:36.2]} 22...
Nf5 {[%clk 0:00:31.1]} 23. Qd7 {[%clk 0:01:30.2]} 23... Nxe3 {[%clk 0:00:23.4]}
24. Qf7+ {[%clk 0:01:30.4]} 24... Kh6 {[%clk 0:00:23]} 25. Re1 {[%clk
0:01:08.2]} 25... Qg6 {[%clk 0:00:23.3]} 26. Rxe3 {[%clk 0:01:02.4]} 26... Qxf7
{[%clk 0:00:22.8]} 27. Rxf7 {[%clk 0:01:03.2]} 27... e5 {[%clk 0:00:23.3]} 28.
Nh2 {[%clk 0:00:53.3]} 28... Bc5 {[%clk 0:00:21.2]} 29. Rg3 {[%clk 0:00:51.5]}
29... Rhg8 {[%clk 0:00:20.5]} 30. Rc7 {[%clk 0:00:46.6]} 30... Rac8 {[%clk
0:00:18.4]} 31. Rgxg7 {[%clk 0:00:41.5]} 31... Rxc7 {[%clk 0:00:15.4]} 32. Rxc7
{[%clk 0:00:39.8]} 32... Bb6 {[%clk 0:00:15.2]} 33. Rd7 {[%clk 0:00:39.9]} 33...
d4 {[%clk 0:00:14.9]} 34. Kf1 {[%clk 0:00:37.2]} 34... Rc8 {[%clk 0:00:14.3]}
35. g4 {[%clk 0:00:36.2]} 35... hxg4 {[%clk 0:00:13.8]} 36. Nxg4+ {[%clk
0:00:36.5]} 36... Kg6 {[%clk 0:00:14.4]} 37. Rd6 {[%clk 0:00:36.6]} 37... Rf8
{[%clk 0:00:11.2]} 38. Nxe5+ {[%clk 0:00:36.3]} 38... Kf5 {[%clk 0:00:11.1]} 39.
Nd7 {[%clk 0:00:34.6]} 39... Rd8 {[%clk 0:00:07.6]} 40. Rxf6+ {[%clk 0:00:33.3]}
40... Kg4 {[%clk 0:00:08]} 41. Nxb6 {[%clk 0:00:28.6]} 41... axb6 {[%clk
0:00:07.6]} 42. Rxb6 {[%clk 0:00:29.1]} 42... Kxh4 {[%clk 0:00:08.1]} 43. Ke2
{[%clk 0:00:28.5]} 43... Kg4 {[%clk 0:00:08.1]} 44. Rb4 {[%clk 0:00:28]} 44...
Kf4 {[%clk 0:00:05.7]} 45. Kd3 {[%clk 0:00:28.1]} 45... Kf3 {[%clk 0:00:05.4]}
46. Rxd4 {[%clk 0:00:26.8]} 46... Ra8 {[%clk 0:00:05.5]} 47. a4 {[%clk
0:00:27.4]} 47... Kg2 {[%clk 0:00:04.5]} 48. f4 {[%clk 0:00:26]} 48... Kf3
{[%clk 0:00:05.2]} 49. f5 {[%clk 0:00:25.8]} 49... Rf8 {[%clk 0:00:01.1]} 50.
Rd5 {[%clk 0:00:25.7]} 1-0

[Event "Late-Titled-Tuesday-Blitz-September-19-2023"]
[Site "Chess.com"]
[Date "2023.09.19"]
[Round "4"]
[White "SCIM"]
[Black "Jospem"]
[Result "0-1"]
[WhiteElo "2564"]
[BlackElo "3057"]
[TimeControl "180+1"]
[EndTime "14:37:56 PDT"]
[Termination "Jospem won on time"]

1. d4 {[%clk 0:03:00.9]} 1... Nf6 {[%clk 0:02:59.3]} 2. c4 {[%clk 0:03:01]} 2...
g6 {[%clk 0:02:55.8]} 3. Nc3 {[%clk 0:03:00.7]} 3... Bg7 {[%clk 0:02:56.4]} 4.
e4 {[%clk 0:02:59.8]} 4... d6 {[%clk 0:02:57.2]} 5. f3 {[%clk 0:03:00.2]} 5...
O-O {[%clk 0:02:57.9]} 6. Be3 {[%clk 0:03:00.6]} 6... c6 {[%clk 0:02:58.7]} 7.
Bd3 {[%clk 0:02:47.4]} 7... e5 {[%clk 0:02:57.3]} 8. d5 {[%clk 0:02:43.6]} 8...
Nbd7 {[%clk 0:02:56.6]} 9. Nge2 {[%clk 0:02:42.5]} 9... a5 {[%clk 0:02:55.6]}
10. O-O {[%clk 0:02:41.2]} 10... Nc5 {[%clk 0:02:56]} 11. Bc2 {[%clk 0:02:40.8]}
11... cxd5 {[%clk 0:02:56.6]} 12. Bxc5 {[%clk 0:02:29.3]} 12... dxc5 {[%clk
0:02:49.5]} 13. cxd5 {[%clk 0:02:30.2]} 13... c4 {[%clk 0:02:43.9]} 14. Qd2
{[%clk 0:02:08.5]} 14... b5 {[%clk 0:02:40]} 15. a4 {[%clk 0:01:58.2]} 15... b4
{[%clk 0:02:33.3]} 16. Nb5 {[%clk 0:01:57.8]} 16... Bd7 {[%clk 0:02:33.8]} 17.
Kh1 {[%clk 0:01:55.2]} 17... Qb6 {[%clk 0:02:32.1]} 18. f4 {[%clk 0:01:48.4]}
18... Ng4 {[%clk 0:02:22.1]} 19. h3 {[%clk 0:01:18.8]} 19... Ne3 {[%clk
0:02:16.1]} 20. Rf3 {[%clk 0:01:17.7]} 20... exf4 {[%clk 0:02:14.8]} 21. Nxf4
{[%clk 0:01:09.2]} 21... Nxc2 {[%clk 0:02:09.6]} 22. Qxc2 {[%clk 0:01:08.3]}
22... Bxb5 {[%clk 0:02:09.1]} 23. axb5 {[%clk 0:01:07.3]} 23... Qxb5 {[%clk
0:02:10]} 24. Raf1 {[%clk 0:01:02.6]} 24... b3 {[%clk 0:02:03]} 25. Qe2 {[%clk
0:00:58.5]} 25... Rae8 {[%clk 0:01:51.6]} 26. d6 {[%clk 0:00:50]} 26... Rd8
{[%clk 0:01:42.8]} 27. Nd5 {[%clk 0:00:46]} 27... Rxd6 {[%clk 0:00:59.9]} 28.
Ne7+ {[%clk 0:00:45.4]} 28... Kh8 {[%clk 0:01:00.5]} 29. Rxf7 {[%clk 0:00:45.7]}
29... Rxf7 {[%clk 0:00:53.6]} 30. Rxf7 {[%clk 0:00:46.6]} 30... Rd8 {[%clk
0:00:53.2]} 31. Qf2 {[%clk 0:00:39]} 31... Qg5 {[%clk 0:00:28.4]} 32. Nd5 {[%clk
0:00:34.2]} 32... Qe5 {[%clk 0:00:24.6]} 33. Qh4 {[%clk 0:00:24.8]} 33... g5
{[%clk 0:00:17.3]} 34. Qg4 {[%clk 0:00:20.6]} 34... Re8 {[%clk 0:00:13]} 35. Rc7
{[%clk 0:00:07.8]} 35... Qxb2 {[%clk 0:00:10.8]} 36. Rxc4 {[%clk 0:00:06.6]}
36... Qa1+ {[%clk 0:00:10.5]} 37. Kh2 {[%clk 0:00:06.6]} 37... Qe5+ {[%clk
0:00:10.6]} 38. g3 {[%clk 0:00:05.2]} 38... b2 {[%clk 0:00:11.5]} 39. Qd1 {[%clk
0:00:05.1]} 39... Rf8 {[%clk 0:00:08]} 40. Ne3 {[%clk 0:00:04.5]} 40... Qb5
{[%clk 0:00:07.1]} 41. Qb1 {[%clk 0:00:02.7]} 41... a4 {[%clk 0:00:07.7]} 42.
Rc7 {[%clk 0:00:02.2]} 42... a3 {[%clk 0:00:07.5]} 43. Nf5 {[%clk 0:00:02.3]}
43... Qe2+ {[%clk 0:00:07.1]} 44. Kg1 {[%clk 0:00:01.3]} 44... Qd2 {[%clk
0:00:04.4]} 45. Rxg7 {[%clk 0:00:02.2]} 45... Qc1+ {[%clk 0:00:04.1]} 0-1

[Event "Late-Titled-Tuesday-Blitz-September-19-2023"]
[Site "Chess.com"]
[Date "2023.09.19"]
[Round "4"]
[White "ErikRonka"]
[Black "JoakimVonAnd"]
[Result "0-1"]
[WhiteElo "2530"]
[BlackElo "2720"]
[TimeControl "180+1"]
[EndTime "14:37:57 PDT"]
[Termination "JoakimVonAnd won by checkmate"]

1. e4 {[%clk 0:03:00.9]} 1... c6 {[%clk 0:02:56.9]} 2. d4 {[%clk 0:03:00.5]}
2... d5 {[%clk 0:02:57.8]} 3. Nd2 {[%clk 0:03:00.9]} 3... dxe4 {[%clk
0:02:58.2]} 4. Nxe4 {[%clk 0:03:01.8]} 4... Bf5 {[%clk 0:02:58.5]} 5. Ng3 {[%clk
0:03:01.9]} 5... Bg6 {[%clk 0:02:59.1]} 6. h4 {[%clk 0:03:02.6]} 6... h6 {[%clk
0:02:59.7]} 7. Nf3 {[%clk 0:03:03.1]} 7... Nf6 {[%clk 0:03:00.3]} 8. Ne5 {[%clk
0:03:02.8]} 8... Bh7 {[%clk 0:03:00.8]} 9. Bd3 {[%clk 0:03:03.3]} 9... Nbd7
{[%clk 0:03:00.5]} 10. Bxh7 {[%clk 0:03:02.5]} 10... Nxe5 {[%clk 0:03:00.9]} 11.
dxe5 {[%clk 0:03:03.3]} 11... Qa5+ {[%clk 0:03:00.8]} 12. Kf1 {[%clk 0:02:57.7]}
12... Nxh7 {[%clk 0:03:00.5]} 13. e6 {[%clk 0:02:57]} 13... Qd5 {[%clk
0:03:00.3]} 14. Qxd5 {[%clk 0:02:51.8]} 14... cxd5 {[%clk 0:03:00.3]} 15. Be3
{[%clk 0:02:33]} 15... fxe6 {[%clk 0:02:54.8]} 16. Bd4 {[%clk 0:02:26.4]} 16...
e5 {[%clk 0:02:55]} 17. Bxe5 {[%clk 0:02:26]} 17... e6 {[%clk 0:02:55.6]} 18.
Ke2 {[%clk 0:02:14.9]} 18... Kf7 {[%clk 0:02:54.3]} 19. Nh5 {[%clk 0:02:05.3]}
19... Nf6 {[%clk 0:02:52.8]} 20. Nf4 {[%clk 0:02:02.7]} 20... Rc8 {[%clk
0:02:45.1]} 21. c3 {[%clk 0:02:02]} 21... Rc4 {[%clk 0:02:40.1]} 22. Nd3 {[%clk
0:01:48.7]} 22... Nd7 {[%clk 0:02:34.1]} 23. Bg3 {[%clk 0:01:44.9]} 23... Be7
{[%clk 0:02:28.1]} 24. f3 {[%clk 0:01:42.9]} 24... Bf6 {[%clk 0:02:26.3]} 25.
Rad1 {[%clk 0:01:36.6]} 25... a5 {[%clk 0:02:22.1]} 26. Kf2 {[%clk 0:01:21.5]}
26... Rhc8 {[%clk 0:02:13.6]} 27. Rhf1 {[%clk 0:01:21.2]} 27... Bxh4 {[%clk
0:02:10.1]} 28. Rfe1 {[%clk 0:01:14]} 28... Bxg3+ {[%clk 0:02:01.4]} 29. Kxg3
{[%clk 0:01:14.9]} 29... b5 {[%clk 0:02:01.1]} 30. Re2 {[%clk 0:01:05.3]} 30...
b4 {[%clk 0:01:39.4]} 31. cxb4 {[%clk 0:01:04.3]} 31... axb4 {[%clk 0:01:39.6]}
32. Rde1 {[%clk 0:01:05]} 32... R8c6 {[%clk 0:01:37.7]} 33. b3 {[%clk
0:01:03.8]} 33... Rd4 {[%clk 0:01:35.3]} 34. Nf4 {[%clk 0:00:55.6]} 34... e5
{[%clk 0:01:34.9]} 35. Nh3 {[%clk 0:00:46.7]} 35... Rc3 {[%clk 0:01:15.2]} 36.
Kh2 {[%clk 0:00:44.7]} 36... Rcd3 {[%clk 0:01:09.7]} 37. Rc2 {[%clk 0:00:39.8]}
37... Rd2 {[%clk 0:01:05.9]} 38. Rc7 {[%clk 0:00:39.5]} 38... Ke6 {[%clk
0:01:06.5]} 39. Ra7 {[%clk 0:00:31.2]} 39... Rc2 {[%clk 0:01:04.5]} 40. a3
{[%clk 0:00:11.2]} 40... Rdd2 {[%clk 0:01:00.7]} 41. Rg1 {[%clk 0:00:10.3]}
41... bxa3 {[%clk 0:01:00.1]} 42. Rxa3 {[%clk 0:00:10.6]} 42... Rb2 {[%clk
0:01:00.6]} 43. Kg3 {[%clk 0:00:08.9]} 43... Nf6 {[%clk 0:00:58.6]} 44. Ra6+
{[%clk 0:00:06.1]} 44... Kf5 {[%clk 0:00:59]} 45. Kh2 {[%clk 0:00:06.2]} 45...
g5 {[%clk 0:00:54.4]} 46. Ra5 {[%clk 0:00:04.8]} 46... h5 {[%clk 0:00:53.9]} 47.
Kh1 {[%clk 0:00:04.7]} 47... Rxb3 {[%clk 0:00:45.3]} 48. Ra4 {[%clk 0:00:04.3]}
48... Rbb2 {[%clk 0:00:43.6]} 49. Ra3 {[%clk 0:00:03.7]} 49... e4 {[%clk
0:00:40.9]} 50. fxe4+ {[%clk 0:00:03.5]} 50... Nxe4 {[%clk 0:00:41.8]} 51. Kh2
{[%clk 0:00:03.4]} 51... g4 {[%clk 0:00:39.8]} 52. Rf1+ {[%clk 0:00:03.2]} 52...
Ke5 {[%clk 0:00:40.2]} 53. Nf4 {[%clk 0:00:04.1]} 53... h4 {[%clk 0:00:39.5]}
54. Ra5 {[%clk 0:00:03.3]} 54... h3 {[%clk 0:00:36.6]} 55. Kh1 {[%clk
0:00:01.2]} 55... hxg2+ {[%clk 0:00:35.4]} 56. Nxg2 {[%clk 0:00:02.1]} 56...
Ng3+ {[%clk 0:00:31.9]} 57. Kg1 {[%clk 0:00:01.7]} 57... Rxg2# {[%clk
0:00:32.1]} 0-1